[Event "56th Rubinstein Memorial D 2020"]
[Site "Polanica Zdroj"]
[Date "2020.08.15"]
[Round "1.1"]
[White "Kozlowski, Pawel"]
[Black "Zyla, Tomasz"]
[Result "1-0"]
[ECO "A03"]
[WhiteElo "1994"]
[BlackElo "1543"]
[Annotator "ChessBase"]
[PlyCount "57"]
[EventDate "2020.08.15"]
[EventType "swiss"]
[EventCountry "POL"]
[SourceTitle "playchess.com"]
[Source "ChessBase"]
[SourceQuality "1"]
[TimeControl "40/5400+30:1800+30"]

1. f4 {[%emt 0:00:00]} d5 {[%emt 0:00:00]} 2. Nf3 {[%emt 0:00:00]} Nf6 {[%emt 0:00:00]} 3. b3 {[%emt 0:00:09]} e6 {[%emt 0:00:10]} 4. Bb2 {[%emt 0:00:07]} Be7 {[%emt 0:00:21]} 5. e3 {[%emt 0:00:17]} Nbd7 {[%emt 0:00:40]} 6. Be2 {[%emt 0:00:18]} O-O {[%emt 0:00:09]} 7. O-O {[%emt 0:00:05]} b6 {[%emt 0:00:55]} 8. Qe1 {[%emt 0:01:33]} Bb7 {[%emt 0:00:24]} 9. Qg3 {[%emt 0:01:53]} Ne8 {[%emt 0:02:23]} 10. Ne5 {[%emt 0:13:15]} Bf6 {[%emt 0:12:09]} 11. d4 {[%emt 0:12:49]} Nd6 {[%emt 0:07:00]} 12. Bd3 {[%emt 0:04:04]} g6 {[%emt 0:06:14]} 13. Nd2 {[%emt 0:01:33]} Bg7 {[%emt 0:02:09]} 14. Qh3 {[%emt 0:04:41]} Rc8 {[%emt 0:11:04]} 15. Ndf3 {[%emt 0:01:07]} Nxe5 {[%emt 0:14:52]} 16. fxe5 {[%emt 0:14:30]} Nf5 {[%emt 0:02:20]} 17. Rae1 {[%emt 0:02:47]} Qe7 {[%emt 0:05:04]} 18. g4 {[%emt 0:04:25]} Nh6 {[%emt 0:00:18]} 19. Bc1 {[%emt 0:02:55]} Kh8 {[%emt 0:08:06]} 20. e4 {[%emt 0:02:19]} Ng8 {[%emt 0:03:32]} 21. exd5 {[%emt 0:05:22]} exd5 {[%emt 0:00:50]} 22. Ng5 {[%emt 0:07:23]} Nh6 {[%emt 0:11:22]} 23. Nf3 {[%emt 0:06:32]} Ng8 {[%emt 0:00:11]} 24. Bg5 {[%emt 0:01:18]} Qd7 {[%emt 0:02:34]} 25. Nh4 {[%emt 0:01:31]} h5 {[%emt 0:02:49]} 26. Nf5 {[%emt 0:04:12]} f6 {[%emt 0:03:38]} 27. e6 {[%emt 0:03:17]} Qc6 {[%emt 0:02:49]} 28. gxh5 {[%emt 0:00:35]} gxf5 {[%emt 0:00:59]} 29. Qxf5 {[%emt 0:00:14]} 1-0

[Event "56th Rubinstein Memorial D 2020"]
[Site "Polanica Zdroj"]
[Date "2020.08.15"]
[Round "1.2"]
[White "Zielinski, Marcin"]
[Black "Lukasiewicz, Aleksander"]
[Result "1-0"]
[ECO "D35"]
[WhiteElo "1534"]
[BlackElo "1960"]
[Annotator "ChessBase"]
[PlyCount "55"]
[EventDate "2020.08.15"]
[EventType "swiss"]
[EventCountry "POL"]
[SourceTitle "playchess.com"]
[Source "ChessBase"]
[SourceQuality "1"]
[TimeControl "40/5400+30:1800+30"]

1. d4 {[%emt 0:00:00]} d5 {[%emt 0:16:17]} 2. c4 {[%emt 0:00:00]} e6 {[%emt 0:00:10]} 3. Nc3 {[%emt 0:00:00]} Nf6 {[%emt 0:00:06]} 4. cxd5 {[%emt 0:00:00]} exd5 {[%emt 0:00:07]} 5. Bg5 {[%emt 0:00:04]} Be7 {[%emt 0:00:13]} 6. e3 {[%emt 0:00:12]} O-O {[%emt 0:00:16]} 7. Bd3 {[%emt 0:00:10]} Nbd7 {[%emt 0:00:26]} 8. Qc2 {[%emt 0:00:11]} Re8 {[%emt 0:00:20]} 9. Nf3 {[%emt 0:00:22]} Nf8 {[%emt 0:00:39]} 10. h3 {[%emt 0:00:22]} c6 {[%emt 0:02:56]} 11. O-O {[%emt 0:00:14]} Ne4 {[%emt 0:09:47]} 12. Bxe7 {[%emt 0:02:42]} Qxe7 {[%emt 0:00:06]} 13. Rab1 {[%emt 0:00:44]} Ng6 {[%emt 0:11:12]} 14. b4 {[%emt 0:06:52]} Nh4 {[%emt 0:10:53]} 15. Nxh4 {[%emt 0:15:19]} Qxh4 {[%emt 0:00:05]} 16. Kh2 {[%emt 0:14:37]} g5 {[%emt 0:15:08]} 17. b5 {[%emt 0:07:26]} Re6 {[%emt 0:12:59]} 18. Bxe4 {[%emt 0:06:33]} dxe4 {[%emt 0:00:09]} 19. g3 {[%emt 0:01:18]} Qh5 {[%emt 0:02:19]} 20. Qe2 {[%emt 0:04:29]} Qg6 {[%emt 0:00:22]} 21. bxc6 {[%emt 0:00:55]} Rxc6 {[%emt 0:02:55]} 22. Rfc1 {[%emt 0:02:15]} Qf5 {[%emt 0:05:57]} 23. g4 {[%emt 0:01:22]} Qg6 {[%emt 0:01:34]} 24. d5 {[%emt 0:04:10]} Rf6 {[%emt 0:03:48]} 25. Qc2 {[%emt 0:00:59]} Rf3 {[%emt 0:00:57]} 26. Nxe4 {[%emt 0:00:56]} f5 {[%emt 0:00:39]} 27. Ng3 {[%emt 0:07:15]} Qh6 {[%emt 0:02:01]} 28. Qxc8+ {[%emt 0:00:40]} 1-0

[Event "56th Rubinstein Memorial D 2020"]
[Site "Polanica Zdroj"]
[Date "2020.08.15"]
[Round "1.3"]
[White "Szydelko, Michal"]
[Black "Ochenduszko, Bartosz"]
[Result "1-0"]
[ECO "C42"]
[WhiteElo "1910"]
[BlackElo "1531"]
[Annotator "ChessBase"]
[PlyCount "75"]
[EventDate "2020.08.15"]
[EventType "swiss"]
[EventCountry "POL"]
[SourceTitle "playchess.com"]
[Source "ChessBase"]
[SourceQuality "1"]
[TimeControl "40/5400+30:1800+30"]

1. e4 {[%emt 0:00:00]} e5 {[%emt 0:00:00]} 2. Nf3 {[%emt 0:00:00]} Nf6 {[%emt 0:00:00]} 3. Nxe5 {[%emt 0:01:45]} Nc6 {[%emt 0:00:00]} 4. Nxc6 {[%emt 0:09:25]} dxc6 {[%emt 0:00:00]} 5. Nc3 {[%emt 0:06:13]} Bc5 {[%emt 0:00:00]} 6. Be2 {[%emt 0:06:17]} h5 {[%emt 0:00:00]} 7. h3 {[%emt 0:07:04]} Qd4 {[%emt 0:00:00]} 8. O-O {[%emt 0:06:02]} Ng4 {[%emt 0:00:00]} 9. hxg4 {[%emt 0:14:17]} hxg4 {[%emt 0:00:07]} 10. g3 {[%emt 0:00:44]} Qe5 {[%emt 0:00:03]} 11. Kg2 {[%emt 0:00:08]} Bxf2 {[%emt 0:00:18]} 12. Kxf2 {[%emt 0:10:06]} Rh2+ {[%emt 0:00:02]} 13. Ke3 {[%emt 0:00:10]} Qxg3+ {[%emt 0:00:20]} 14. Bf3 {[%emt 0:05:37]} gxf3 {[%emt 0:03:18]} 15. Qxf3 {[%emt 0:16:23]} Qg5+ {[%emt 0:00:15]} 16. Qf4 {[%emt 0:00:32]} Rh3+ {[%emt 0:00:54]} 17. Ke2 {[%emt 0:01:32]} Bg4+ {[%emt 0:02:44]} 18. Ke1 {[%emt 0:00:26]} Qh4+ {[%emt 0:00:15]} 19. Qf2 {[%emt 0:00:01]} Qh5 {[%emt 0:06:20]} 20. d3 {[%emt 0:08:26]} O-O-O {[%emt 0:21:03]} 21. Bf4 {[%emt 0:03:10]} Rf3 {[%emt 0:08:44]} 22. Qh2 {[%emt 0:00:09]} Rh3 {[%emt 0:01:54]} 23. Qg2 {[%emt 0:00:13]} g5 {[%emt 0:13:56]} 24. Bg3 {[%emt 0:01:22]} f5 {[%emt 0:00:22]} 25. exf5 {[%emt 0:00:35]} Rf8 {[%emt 0:14:11]} 26. Kd2 {[%emt 0:00:29]} Bxf5 {[%emt 0:00:21]} 27. Rh1 {[%emt 0:01:01]} g4 {[%emt 0:00:26]} 28. Rxh3 {[%emt 0:01:00]} Qg5+ 29. Bf4 {[%emt 0:00:38]} Qxf4+ {[%emt 0:00:54]} 30. Re3 {[%emt 0:00:01]} Rh8 {[%emt 0:01:05]} 31. Rh1 {[%emt 0:00:47]} Re8 {[%emt 0:01:16]} 32. Qg3 {[%emt 0:00:37]} Qg5 {[%emt 0:00:55]} 33. Ne2 {[%emt 0:00:44]} Bd7 {[%emt 0:01:03]} 34. Qf4 {[%emt 0:00:16]} Qa5+ {[%emt 0:00:28]} 35. b4 {[%emt 0:00:08]} Qd5 {[%emt 0:01:30]} 36. Rxe8+ {[%emt 0:00:07]} Bxe8 {[%emt 0:00:03]} 37. Rh8 {[%emt 0:00:43]} Qe6 {[%emt 0:01:22]} 38. Qe4 {[%emt 0:00:29]} 1-0

[Event "56th Rubinstein Memorial D 2020"]
[Site "Polanica Zdroj"]
[Date "2020.08.15"]
[Round "1.4"]
[White "Szuber, Dawid"]
[Black "Szczygiel, Konrad"]
[Result "0-1"]
[ECO "B06"]
[WhiteElo "1523"]
[BlackElo "1901"]
[Annotator "ChessBase"]
[PlyCount "100"]
[EventDate "2020.08.15"]
[EventType "swiss"]
[EventCountry "POL"]
[SourceTitle "playchess.com"]
[Source "ChessBase"]
[SourceQuality "1"]
[TimeControl "40/5400+30:1800+30"]

1. e4 {[%emt 0:00:00]} g6 {[%emt 0:00:00]} 2. d4 {[%emt 0:00:01]} Bg7 {[%emt 0:00:00]} 3. g3 {[%emt 0:00:28]} c5 {[%emt 0:01:08]} 4. Ne2 {[%emt 0:03:15]} cxd4 {[%emt 0:06:12]} 5. Nxd4 {[%emt 0:00:02]} d5 {[%emt 0:00:23]} 6. Bb5+ {[%emt 0:14:32]} Bd7 {[%emt 0:01:50]} 7. Nc3 {[%emt 0:05:31]} dxe4 {[%emt 0:09:03]} 8. Nxe4 {[%emt 0:01:21]} Qa5+ {[%emt 0:07:25]} 9. Bd2 {[%emt 0:02:52]} Qb6 {[%emt 0:01:16]} 10. Bxd7+ {[%emt 0:04:14]} Nxd7 {[%emt 0:00:34]} 11. Be3 {[%emt 0:07:48]} O-O-O {[%emt 0:05:55]} 12. O-O {[%emt 0:06:20]} Ndf6 {[%emt 0:06:46]} 13. Nxf6 {[%emt 0:03:55]} Nxf6 {[%emt 0:00:38]} 14. Qe2 {[%emt 0:02:15]} Nd5 {[%emt 0:04:56]} 15. c3 {[%emt 0:04:19]} Nxe3 {[%emt 0:04:12]} 16. fxe3 {[%emt 0:00:52]} f5 {[%emt 0:01:18]} 17. Rfe1 {[%emt 0:02:49]} e5 {[%emt 0:05:13]} 18. Qc4+ {[%emt 0:03:44]} Kb8 {[%emt 0:00:19]} 19. Nb3 {[%emt 0:02:03]} Bh6 {[%emt 0:02:53]} 20. Qc5 {[%emt 0:04:12]} Qxc5 {[%emt 0:01:24]} 21. Nxc5 {[%emt 0:00:02]} Rd2 {[%emt 0:02:06]} 22. e4 {[%emt 0:01:49]} f4 {[%emt 0:00:31]} 23. Rad1 {[%emt 0:07:38]} Rhd8 {[%emt 0:02:29]} 24. Rxd2 {[%emt 0:01:05]} Rxd2 {[%emt 0:00:01]} 25. a4 {[%emt 0:01:24]} f3 {[%emt 0:04:03]} 26. Kh1 {[%emt 0:01:35]} b6 {[%emt 0:01:40]} 27. Na6+ {[%emt 0:01:00]} Kb7 {[%emt 0:00:07]} 28. Nb4 {[%emt 0:00:04]} Rxb2 {[%emt 0:00:32]} 29. Nd3 {[%emt 0:00:33]} Re2 {[%emt 0:04:09]} 30. Rxe2 {[%emt 0:02:52]} fxe2 {[%emt 0:00:08]} 31. Kg2 {[%emt 0:00:10]} Bd2 {[%emt 0:01:00]} 32. Kf2 {[%emt 0:00:04]} e1=Q+ {[%emt 0:02:32]} 33. Nxe1 {[%emt 0:00:03]} Bxe1+ {[%emt 0:00:34]} 34. Kxe1 {[%emt 0:00:15]} Ka6 {[%emt 0:00:06]} 35. Ke2 {[%emt 0:02:08]} Ka5 {[%emt 0:00:07]} 36. Kd3 {[%emt 0:00:47]} Kxa4 {[%emt 0:04:49]} 37. Kc4 {[%emt 0:00:59]} b5+ {[%emt 0:00:08]} 38. Kd5 {[%emt 0:00:02]} a5 {[%emt 0:00:10]} 39. Kxe5 {[%emt 0:00:09]} b4 {[%emt 0:00:05]} 40. cxb4 {[%emt 0:00:40]} axb4 {[%emt 0:00:08]} 41. Kf6 {[%emt 0:31:27]} b3 {[%emt 0:30:06]} 42. e5 {[%emt 0:00:01]} b2 {[%emt 0:00:08]} 43. e6 {[%emt 0:00:02]} b1=Q {[%emt 0:00:10]} 44. e7 {[%emt 0:00:08]} Qf5+ {[%emt 0:00:33]} 45. Kg7 {[%emt 0:00:59]} Qe6 {[%emt 0:00:06]} 46. Kf8 {[%emt 0:00:16]} Qf6+ {[%emt 0:00:14]} 47. Ke8 {[%emt 0:00:19]} Kb5 {[%emt 0:00:10]} 48. Kd8 {[%emt 0:00:16]} Kc6 {[%emt 0:00:14]} 49. Ke8 {[%emt 0:00:33]} Kd6 {[%emt 0:00:06]} 50. g4 {[%emt 0:00:05]} Qxe7# {[%emt 0:00:06]} 0-1

[Event "56th Rubinstein Memorial D 2020"]
[Site "Polanica Zdroj"]
[Date "2020.08.15"]
[Round "1.5"]
[White "Darowicki, Mariusz"]
[Black "Ratajczak, Hubert"]
[Result "1-0"]
[ECO "A48"]
[WhiteElo "1890"]
[BlackElo "1513"]
[Annotator "NA"]
[PlyCount "120"]
[EventDate "2020.08.15"]
[EventType "swiss"]
[EventCountry "POL"]
[SourceTitle "playchess.com"]
[Source "ChessBase"]
[SourceQuality "1"]
[TimeControl "40/5400+30:1800+30"]

1. d4 {[%emt 0:00:00]} Nf6 {[%emt 0:00:00]} 2. Nf3 {[%emt 0:00:04]} g6 {[%emt 0:00:09]} 3. h4 {[%emt 0:03:22]} Bg7 {[%emt 0:01:03]} 4. Bg5 {[%emt 0:04:06]} d5 {[%emt 0:05:34]} 5. Bxf6 {[%emt 0:02:14]} exf6 {[%emt 0:03:12]} 6. h5 {[%emt 0:01:52]} O-O {[%emt 0:01:21]} 7. h6 {[%emt 0:00:28]} Bh8 {[%emt 0:00:04]} 8. e3 {[%emt 0:00:41]} Be6 {[%emt 0:02:25]} 9. Nbd2 {[%emt 0:02:47]} f5 {[%emt 0:06:43]} 10. c3 {[%emt 0:02:34]} Nd7 {[%emt 0:01:09]} 11. Be2 {[%emt 0:01:10]} c6 {[%emt 0:02:39]} 12. g3 {[%emt 0:01:52]} Bf6 {[%emt 0:04:51]} 13. Kf1 {[%emt 0:01:14]} Qc7 {[%emt 0:05:21]} 14. Kg2 {[%emt 0:02:20]} Rfe8 {[%emt 0:03:35]} 15. Rc1 {[%emt 0:02:26]} Nb6 {[%emt 0:02:47]} 16. b3 {[%emt 0:03:39]} Re7 {[%emt 0:02:39]} 17. Qc2 {[%emt 0:01:59]} a5 {[%emt 0:00:38]} 18. c4 {[%emt 0:01:55]} Rae8 {[%emt 0:02:15]} 19. c5 {[%emt 0:00:41]} Nd7 {[%emt 0:00:31]} 20. Rb1 {[%emt 0:06:53]} Nb8 {[%emt 0:04:10]} 21. b4 {[%emt 0:01:20]} axb4 {[%emt 0:02:58]} 22. Rxb4 {[%emt 0:00:21]} Na6 {[%emt 0:01:18]} 23. Rb6 {[%emt 0:00:55]} Bc8 {[%emt 0:01:45]} 24. Bxa6 {[%emt 0:03:19]} bxa6 {[%emt 0:00:18]} 25. Qa4 {[%emt 0:00:19]} Re6 {[%emt 0:03:55]} 26. Qc2 {[%emt 0:06:54]} f4 {[%emt 0:02:58]} 27. gxf4 {[%emt 0:03:29]} Bd8 {[%emt 0:02:10]} 28. Nf1 {[%emt 0:09:41]} f6 {[%emt 0:02:07]} 29. Ng3 {[%emt 0:02:22]} Qd7 {[%emt 0:01:59]} 30. Rbb1 {[%emt 0:01:36]} R6e7 {[%emt 0:04:30]} 31. Qa4 {[%emt 0:02:40]} Bc7 {[%emt 0:01:51]} 32. Rbg1 {[%emt 0:08:08]} Kh8 {[%emt 0:01:04]} 33. Qc2 {[%emt 0:05:30]} Rg8 {[%emt 0:01:26]} 34. Rh2 {[%emt 0:02:20]} g5 {[%emt 0:02:44]} 35. fxg5 {[%emt 0:00:44]} Bxg3 {[%emt 0:00:15]} 36. fxg3 {[%emt 0:00:12]} Rxe3 {[%emt 0:00:18]} 37. Rf1 {[%emt 0:02:24]} Qc7 {[%emt 0:03:09]} 38. Qf2 {[%emt 0:02:09]} Re6 {[%emt 0:00:59]} 39. Re1 {[%emt 0:01:41]} Qf7 {[%emt 0:03:33]} 40. Rxe6 {[%emt 0:00:26]} Qxe6 {[%emt 0:00:57]} 41. gxf6 {[%emt 0:31:25]} Qxf6 {[%emt 0:30:37]} 42. Ne5 {[%emt 0:00:29]} Bf5 {[%emt 0:00:27]} 43. g4 {[%emt 0:04:19]} Be4+ {[%emt 0:01:40]} 44. Kg3 {[%emt 0:00:14]} Bf5 {[%emt 0:01:52]} 45. Rh5 {[%emt 0:01:06]} Qe6 {[%emt 0:04:29]} 46. Qxf5 {[%emt 0:00:23]} Qxf5 {[%emt 0:00:18]} 47. Rxf5 {[%emt 0:00:06]} Rb8 {[%emt 0:00:48]} 48. Nd7 {[%emt 0:00:18]} Rd8 {[%emt 0:00:23]} 49. Rf8+ {[%emt 0:00:22]} Rxf8 {[%emt 0:00:04]} 50. Nxf8 {[%emt 0:00:03]} Kg8 {[%emt 0:00:06]} 51. Ne6 {[%emt 0:00:09]} a5 {[%emt 0:00:02]} 52. Nd8 {[%emt 0:00:10]} a4 {[%emt 0:00:13]} 53. Nxc6 {[%emt 0:00:06]} Kf7 {[%emt 0:00:09]} 54. Ne5+ {[%emt 0:00:05]} Ke6 {[%emt 0:00:04]} 55. c6 {[%emt 0:00:09]} Kd6 {[%emt 0:00:04]} 56. g5 {[%emt 0:00:06]} a3 {[%emt 0:00:05]} 57. g6 {[%emt 0:00:05]} hxg6 {[%emt 0:00:09]} 58. h7 {[%emt 0:00:07]} Ke6 {[%emt 0:00:06]} 59. h8=Q {[%emt 0:00:09]} Kf5 {[%emt 0:00:04]} 60. Kf3 {[%emt 0:00:13]} Kg5 1-0

[Event "56th Rubinstein Memorial D 2020"]
[Site "Polanica Zdroj"]
[Date "2020.08.15"]
[Round "1.6"]
[White "Klisowski, Bartosz"]
[Black "Lewandrowski, Tomasz"]
[Result "0-1"]
[ECO "A04"]
[WhiteElo "1509"]
[BlackElo "1879"]
[Annotator "NA"]
[PlyCount "64"]
[EventDate "2020.08.15"]
[EventType "swiss"]
[EventCountry "POL"]
[SourceTitle "playchess.com"]
[Source "ChessBase"]
[SourceQuality "1"]
[TimeControl "40/5400+30:1800+30"]

1. Nf3 {[%emt 0:00:00]} c5 {[%emt 0:00:00]} 2. g3 {[%emt 0:00:10]} d6 {[%emt 0:01:02]} 3. c4 {[%emt 0:01:25]} Nf6 {[%emt 0:01:08]} 4. Bg2 {[%emt 0:00:52]} g6 {[%emt 0:01:24]} 5. Nc3 {[%emt 0:02:13]} Bg7 {[%emt 0:00:29]} 6. O-O {[%emt 0:00:28]} O-O {[%emt 0:00:32]} 7. d3 {[%emt 0:00:59]} Nc6 {[%emt 0:00:58]} 8. Rb1 {[%emt 0:02:25]} Rb8 {[%emt 0:03:24]} 9. a3 {[%emt 0:01:30]} a5 {[%emt 0:02:09]} 10. Bd2 {[%emt 0:02:43]} Bg4 {[%emt 0:04:43]} 11. Ne1 {[%emt 0:04:24]} Qd7 {[%emt 0:07:11]} 12. Nc2 {[%emt 0:05:07]} Bh3 {[%emt 0:01:17]} 13. b4 {[%emt 0:03:23]} Bxg2 {[%emt 0:10:06]} 14. Kxg2 {[%emt 0:00:24]} axb4 {[%emt 0:00:19]} 15. axb4 {[%emt 0:00:14]} Nd4 {[%emt 0:03:02]} 16. Nxd4 {[%emt 0:02:42]} cxd4 {[%emt 0:00:08]} 17. Nb5 {[%emt 0:03:57]} d5 {[%emt 0:00:39]} 18. Bf4 {[%emt 0:03:02]} Rbd8 {[%emt 0:04:52]} 19. Qc2 {[%emt 0:05:38]} dxc4 {[%emt 0:05:21]} 20. dxc4 {[%emt 0:00:13]} Rc8 {[%emt 0:04:48]} 21. Rbc1 {[%emt 0:07:07]} Nd5 {[%emt 0:01:40]} 22. Qd2 {[%emt 0:01:51]} e5 {[%emt 0:03:41]} 23. Bh6 {[%emt 0:02:32]} Bxh6 {[%emt 0:01:07]} 24. Qxh6 {[%emt 0:00:04]} Nxb4 {[%emt 0:00:16]} 25. Qd2 {[%emt 0:01:08]} Na6 {[%emt 0:06:01]} 26. Rfd1 {[%emt 0:01:34]} Rxc4 {[%emt 0:02:44]} 27. Qd3 {[%emt 0:03:26]} Qc6+ {[%emt 0:02:00]} 28. Qf3 {[%emt 0:02:52]} Rxc1 {[%emt 0:01:40]} 29. Rxc1 {[%emt 0:00:03]} Qxb5 {[%emt 0:00:27]} 30. Qe4 {[%emt 0:01:32]} Rd8 {[%emt 0:01:47]} 31. Rb1 {[%emt 0:00:15]} Qc6 {[%emt 0:00:09]} 32. Qxc6 {[%emt 0:00:10]} bxc6 {[%emt 0:00:02]} 0-1

[Event "56th Rubinstein Memorial D 2020"]
[Site "Polanica Zdroj"]
[Date "2020.08.15"]
[Round "1.7"]
[White "Simon, Marek"]
[Black "Bednarczyk, Mateusz"]
[Result "1-0"]
[ECO "E97"]
[WhiteElo "1878"]
[BlackElo "1506"]
[Annotator "NA"]
[PlyCount "41"]
[EventDate "2020.08.15"]
[EventType "swiss"]
[EventCountry "POL"]
[SourceTitle "playchess.com"]
[Source "ChessBase"]
[SourceQuality "1"]
[TimeControl "40/5400+30:1800+30"]

1. d4 {[%emt 0:00:00]} Nf6 {[%emt 0:00:00]} 2. c4 {[%emt 0:00:00]} g6 {[%emt 0:00:00]} 3. Nc3 {[%emt 0:00:00]} Bg7 {[%emt 0:00:00]} 4. e4 {[%emt 0:00:07]} O-O {[%emt 0:00:00]} 5. Nf3 {[%emt 0:00:12]} d6 {[%emt 0:00:03]} 6. Be2 {[%emt 0:00:22]} e5 {[%emt 0:00:15]} 7. O-O {[%emt 0:00:14]} Nc6 {[%emt 0:00:14]} 8. d5 {[%emt 0:00:31]} Ne7 {[%emt 0:00:02]} 9. b4 {[%emt 0:00:44]} Nd7 {[%emt 0:00:48]} 10. a4 {[%emt 0:05:13]} f5 {[%emt 0:02:19]} 11. Ng5 {[%emt 0:01:08]} Nf6 {[%emt 0:00:23]} 12. Bf3 {[%emt 0:04:51]} f4 {[%emt 0:02:52]} 13. c5 {[%emt 0:06:12]} h6 {[%emt 0:02:15]} 14. Ne6 {[%emt 0:00:38]} Bxe6 {[%emt 0:00:05]} 15. dxe6 {[%emt 0:00:34]} dxc5 {[%emt 0:00:57]} 16. bxc5 {[%emt 0:03:05]} c6 {[%emt 0:00:32]} 17. Rb1 {[%emt 0:11:57]} Rb8 {[%emt 0:01:54]} 18. Qd6 {[%emt 0:18:25]} Qxd6 {[%emt 0:07:56]} 19. cxd6 {[%emt 0:00:19]} Nc8 {[%emt 0:00:31]} 20. d7 {[%emt 0:08:30]} Ne7 {[%emt 0:03:48]} 21. Ba3 {[%emt 0:01:09]} 1-0

[Event "56th Rubinstein Memorial D 2020"]
[Site "Polanica Zdroj"]
[Date "2020.08.15"]
[Round "1.8"]
[White "Bukala, Weronika"]
[Black "Pyka, Roman"]
[Result "0-1"]
[ECO "E30"]
[WhiteElo "1504"]
[BlackElo "1873"]
[Annotator "NA"]
[PlyCount "88"]
[EventDate "2020.08.15"]
[EventType "swiss"]
[EventCountry "POL"]
[SourceTitle "playchess.com"]
[Source "ChessBase"]
[SourceQuality "1"]
[TimeControl "40/5400+30:1800+30"]

1. d4 {[%emt 0:00:00]} e6 {[%emt 0:00:01]} 2. c4 {[%emt 0:00:13]} Nf6 {[%emt 0:00:17]} 3. Nc3 {[%emt 0:00:47]} Bb4 {[%emt 0:00:15]} 4. Bg5 {[%emt 0:00:42]} c5 {[%emt 0:00:54]} 5. Nf3 {[%emt 0:05:35]} cxd4 {[%emt 0:02:56]} 6. Qxd4 {[%emt 0:02:40]} Nc6 {[%emt 0:02:25]} 7. Qf4 {[%emt 0:01:24]} Bxc3+ {[%emt 0:05:48]} 8. bxc3 {[%emt 0:00:11]} h6 {[%emt 0:00:02]} 9. Qh4 {[%emt 0:03:24]} O-O {[%emt 0:07:31]} 10. Bd2 {[%emt 0:05:59]} d5 {[%emt 0:03:58]} 11. cxd5 {[%emt 0:06:39]} exd5 {[%emt 0:02:24]} 12. Rd1 {[%emt 0:04:51]} Ne4 {[%emt 0:01:48]} 13. Qh5 {[%emt 0:03:03]} Qf6 {[%emt 0:04:13]} 14. Rc1 {[%emt 0:02:57]} Bf5 {[%emt 0:06:02]} 15. g4 {[%emt 0:08:35]} Bg6 {[%emt 0:04:24]} 16. Qh4 {[%emt 0:06:24]} Qxh4 {[%emt 0:06:15]} 17. Nxh4 {[%emt 0:00:08]} Nxd2 {[%emt 0:00:54]} 18. Kxd2 {[%emt 0:04:13]} Be4 {[%emt 0:00:06]} 19. f3 {[%emt 0:01:19]} Bh7 {[%emt 0:00:16]} 20. e3 {[%emt 0:02:39]} Ne5 {[%emt 0:00:29]} 21. Ke2 {[%emt 0:06:33]} Rac8 {[%emt 0:00:22]} 22. Kf2 {[%emt 0:02:28]} Rc5 {[%emt 0:00:35]} 23. Be2 {[%emt 0:05:22]} Ra5 {[%emt 0:06:32]} 24. f4 {[%emt 0:07:47]} Nd3+ {[%emt 0:00:41]} 25. Bxd3 {[%emt 0:00:20]} Bxd3 {[%emt 0:00:08]} 26. Rhd1 {[%emt 0:03:56]} Rxa2+ {[%emt 0:00:19]} 27. Kg3 {[%emt 0:00:07]} Be4 {[%emt 0:00:22]} 28. Nf5 {[%emt 0:00:25]} Bxf5 {[%emt 0:01:00]} 29. gxf5 {[%emt 0:00:05]} Re8 {[%emt 0:01:14]} 30. Re1 {[%emt 0:01:02]} Ra3 {[%emt 0:09:26]} 31. Rc2 {[%emt 0:00:55]} Rc8 {[%emt 0:00:26]} 32. Rec1 {[%emt 0:00:21]} Rc6 {[%emt 0:02:17]} 33. Kf3 {[%emt 0:01:18]} Rf6 {[%emt 0:00:41]} 34. Kg4 {[%emt 0:03:36]} Rc6 {[%emt 0:01:35]} 35. Kf3 {[%emt 0:00:20]} Kf8 {[%emt 0:01:22]} 36. Ke2 {[%emt 0:03:07]} Rf6 {[%emt 0:01:16]} 37. Rb1 {[%emt 0:00:13]} b6 {[%emt 0:00:10]} 38. Rb5 {[%emt 0:00:32]} Rxf5 {[%emt 0:03:50]} 39. c4 {[%emt 0:00:49]} Rh5 {[%emt 0:00:25]} 40. Kf3 {[%emt 0:02:13]} Rh3+ {[%emt 0:02:20]} 41. Kg4 {[%emt 0:30:38]} Rhxe3 {[%emt 0:31:52]} 42. cxd5 {[%emt 0:02:26]} Rac3 {[%emt 0:02:44]} 43. Ra2 {[%emt 0:01:11]} Rc7 {[%emt 0:00:57]} 44. f5 {[%emt 0:03:13]} Rc4+ {[%emt 0:00:49]} 0-1